fUST/lending_fUST_20240520
["ID","MTS","AMOUNT","RATE_DAILY","PERIOD"]
[327533887,1716183044392,-594.62500957,0.00046575,30]
[327533888,1716183044401,-500.0,0.00046575,30]
[327533889,1716183044411,-502.03282483,0.00046575,30]
[327533890,1716183044420,-500.0,0.00046575,30]
[327533891,1716183044430,-500.0,0.00046575,20]
[327533892,1716183044439,-501.82945425,0.00046575,30]
[327533893,1716183044448,-500.0,0.00046575,30]
[327533894,1716183044457,-500.0,0.00046575,30]
[327533895,1716183044467,-500.0,0.00046575,30]
[327533896,1716183044476,-500.0,0.00046575,30]
[327533897,1716183044486,-503.07144241,0.00046575,30]
[327533898,1716183044495,-502.66441371,0.00046575,30]
[327533899,1716183044504,-500.0,0.00046575,30]
[327533900,1716183044513,-502.69496278,0.00046575,30]
[327533901,1716183044523,-504.82601816,0.00046575,30]
[327533902,1716183044533,-300.0,0.00046575,7]
[327533903,1716183044542,-502.79832024,0.00046575,2]
[327533904,1716183044551,-500.0,0.00046575,30]
[327533905,1716183044561,-502.41312056,0.00046575,30]
[327533906,1716183044572,-591.6073151,0.00046575,30]
[327533907,1716183044581,-501.88032947,0.00046575,30]
[327533908,1716183044591,-509.0,0.00046575,30]
[327533909,1716183044601,-500.0,0.00046575,30]
[327533910,1716183044611,-500.0,0.00046575,30]
[327533911,1716183044620,-500.0,0.00046575,30]
[327533912,1716183044629,-500.0,0.00046575,30]
[327533913,1716183044639,-171.22428634,0.00046575,30]
[327533914,1716183044648,-506.55162474,0.00046575,30]
[327533915,1716183044658,-355.96223959,0.00046575,30]
[327533916,1716183044667,-503.18797659,0.00046575,30]
[327533917,1716183044677,-500.0,0.00046575,30]
[327533918,1716183044686,-500.0,0.00046575,30]
[327533919,1716183044696,-500.83920246,0.00046575,30]
[327533920,1716183044705,-500.70375635,0.00046575,7]
[327533921,1716183044715,-500.0,0.00046575,30]
[327533922,1716183044724,-501.66293221,0.00046575,30]
[327533923,1716183044733,-500.0,0.00046575,30]
[327533924,1716183044742,-500.0,0.00046575,30]
[327533925,1716183044752,-506.36383144,0.00046575,30]
[327533926,1716183044761,-506.33998342,0.00046575,30]
[327533927,1716183044771,-500.0,0.00046575,30]
[327533928,1716183044781,-513.08267202,0.00046575,30]
[327533929,1716183044790,-283.08819748,0.00046575,30]
[327533949,1716183046420,-216.91180252,0.00046575,30]
[327533951,1716183046430,-500.0,0.00046575,30]
[327533953,1716183046440,-500.0,0.00046575,30]
[327533955,1716183046449,-507.8837687,0.00046575,30]
[327533957,1716183046459,-500.0,0.00046575,30]
[327533959,1716183046469,-502.06585767,0.00046575,30]
[327533961,1716183046478,-500.0,0.00046575,30]
[327533963,1716183046488,-500.0,0.00046575,30]
[327533965,1716183046497,-502.66417133,0.00046575,31]
[327533967,1716183046507,-500.0,0.00046575,30]
[327533969,1716183046516,-500.0,0.00046575,30]
[327533971,1716183046526,-500.0,0.00046575,30]
[327533973,1716183046535,-500.0,0.00046575,30]
[327533975,1716183046544,-151.0,0.00046575,7]
[327533977,1716183046554,-500.0,0.00046575,30]
[327533979,1716183046563,-158.98905575,0.00046575,30]
[327533981,1716183046572,-500.0,0.00046575,30]
[327533983,1716183046582,-506.80272591,0.00046575,30]
[327533985,1716183046591,-503.19647318,0.00046575,30]
[327533987,1716183046601,-503.45600797,0.00046575,30]
[327533989,1716183046611,-500.0,0.00046575,2]
[327533991,1716183046621,-509.03230854,0.00046575,30]
[327533993,1716183046630,-500.0,0.00046575,30]
[327533995,1716183046640,-500.0,0.00046575,30]
[327533997,1716183046649,-521.96471796,0.00046575,30]
[327533999,1716183046659,-500.0,0.00046575,30]
[327534001,1716183046667,-515.06374995,0.00046575,30]
[327534003,1716183046677,-500.0,0.00046575,30]
[327534005,1716183046686,-500.0,0.00046575,30]
[327534007,1716183046695,-500.0,0.00046575,30]
[327534009,1716183046704,-500.0,0.00046575,30]
[327534011,1716183046714,-406.55579983,0.00046575,30]
[327534013,1716183046723,-500.0,0.00046575,30]
[327534015,1716183046732,-503.39337365,0.00046575,30]
[327534017,1716183046742,-507.69529915,0.00046575,30]
[327534019,1716183046752,-501.67846829,0.00046575,30]
[327534021,1716183046761,-500.0,0.00046575,30]
[327534023,1716183046770,-500.0,0.00046575,30]
[327534025,1716183046781,-500.0,0.00046575,30]
[327534027,1716183046790,-500.0,0.00046575,30]
[327534029,1716183046803,-500.0,0.00046575,30]
[327534031,1716183046813,-465.49799331,0.00046575,30]
[327534118,1716183058928,944.88018831,0.00020913,2]
[327534120,1716183063755,155.03366196,0.00020913,2]
[327534121,1716183066459,1040.19945292,0.00020913,2]
[327534141,1716183936189,-155.67481044,0.00020911,2]
[327534142,1716183936210,-294.88195727,0.00020911,2]
[327534143,1716183936229,-219.54897258,0.00020912,2]
[327534144,1716183936248,-155.49089692,0.00020912,2]
[327534145,1716183936269,-531.60873198,0.00020912,2]
[327534146,1716183936289,-155.05052909,0.00020912,2]
[327534147,1716183936312,-747.78101414,0.00020912,2]
[327534148,1716183936332,-236.30330218,0.00020912,2]
[327534149,1716183936351,-273.71865871,0.00020912,2]
[327534150,1716183936470,-1397.16381129,0.00020912,2]
[327534151,1716183936491,-198.23752677,0.00020912,2]
[327534152,1716183936512,-310.98706651,0.00020912,2]
[327534153,1716183936531,-218.40161497,0.00020912,2]
[327534154,1716183936551,-603.41772873,0.00020912,2]
[327534155,1716183936573,-156.03945492,0.00020912,2]
[327534156,1716183936592,-238.3816602,0.00020912,2]
[327534157,1716183936612,-2478.25009715,0.00020912,2]
[327534158,1716183936632,-1718.73665311,0.00020912,2]
[327534159,1716183936652,-195.83932174,0.00020912,2]
[327534160,1716183936672,-162.3944335,0.00020912,2]
[327534161,1716183936691,-1670.68499482,0.00020912,2]
[327534162,1716183936711,-1913.56388252,0.00020912,2]
[327534163,1716183936730,-312.67295473,0.00020912,2]
[327534164,1716183936749,-1415.30088514,0.00020912,2]
[327534165,1716183936769,-518.12108828,0.00020912,2]
[327534166,1716183936788,-19192.14109712,0.00020912,2]
[327534167,1716183936806,-370.53600347,0.00020912,2]
[327534168,1716183936826,-216.5486441,0.00020913,2]
[327534169,1716183936845,-494.32540629,0.00020913,2]
[327534170,1716183936866,-364.99536497,0.00020913,2]
[327534171,1716183936889,-167.61413,0.00024384,2]
[327534172,1716183936909,-170.1647399,0.00024384,2]
[327534173,1716183936930,-500.0,0.00027,2]
[327534174,1716183936949,-12069.69118517,0.00029,30]
[327534175,1716183936970,-156.03612825,0.0003,2]
[327534176,1716183936990,-311.08953303,0.0003,2]
[327534177,1716183937011,-154.25941057,0.0003446,2]
[327534178,1716183937031,-35591.49195175,0.0003455,3]
[327534179,1716184035172,-9499.29039189,0.00029,30]
[327534180,1716184035192,-496.65196332,0.0003455,2]
[327534181,1716184035212,-10691.49115479,0.0003455,3]
[327534182,1716184036110,-1085.00160378,0.0003455,3]
[327534192,1716184146104,-242.83628591,0.00021,2]
[327534193,1716184146129,-10940.08046561,0.00029,30]
[327534285,1716184239193,-24904.24,0.0003456,3]
[327534286,1716184239204,-5304.18194748,0.0003457,3]
[327534287,1716184239214,-7855.20910674,0.0003457,3]
[327534289,1716184239223,-179017.17755972,0.0003457,2]
[327534291,1716184239235,-84683.75509269,0.0003457,2]
[327534375,1716184240874,-1879.411488,0.0003457,2]
[327534390,1716184241001,-3983.9,0.0003457,2]
[327534428,1716184244399,-43531.95836927,0.0003456,3]
[327534439,1716184246771,-3958.76163073,0.0003456,3]
[327534440,1716184246781,-7224.15512079,0.0003457,2]
[327534455,1716184288411,1191.02730765,0.00020913,2]
[327534456,1716184333599,275.38078496,0.00020913,2]
[327534457,1716184334801,374.80357925,0.00020913,2]
[327534458,1716184336460,303.0,0.00020912,2]
[327534474,1716184521938,2000.0,0.00016,2]
[327534504,1716185153160,-223.0,0.00020907,2]
[327534505,1716185153180,-154.83128817,0.00020912,2]
[327534506,1716185153200,-2112.32090735,0.00020912,2]
[327534507,1716185153221,-238.58491264,0.00020913,7]
[327534508,1716185153242,-621.27331187,0.00020913,2]
[327534509,1716185153263,-7792.63456355,0.00029,30]
[327534519,1716185243100,-555.83580202,0.00020913,2]
[327534520,1716185243130,-3451.42322808,0.00029,30]
[327534521,1716185252089,-470.32125316,0.00029,30]
[327534534,1716185367088,-370.55720135,0.00020913,2]
[327534535,1716185367110,-355.31214038,0.00029,30]
[327534538,1716185378027,308.79766779,0.00020913,2]
[327534539,1716185394027,160.88358492,0.00020913,2]
[327534540,1716185408557,1129.61071956,0.00029,30]
[327534541,1716185414039,160.88358492,0.00020913,2]
[327534606,1716185434035,160.88358492,0.00020913,2]
[327534639,1716185438163,-38.51637627,0.000319,2]
[327534641,1716185438174,-154.02001132,0.000319,2]
[327534643,1716185438184,-352.461752,0.00034247,2]
[327534644,1716185438195,-64.76275103,0.00034247,2]
[327534645,1716185438204,-270.31230141,0.00034363,2]
[327534646,1716185438216,-3951.78790665,0.00034363,2]
[327534647,1716185438225,-11051.01193335,0.0003455,3]
[327534670,1716185442013,-9838.49806665,0.0003455,3]
[327534671,1716185442022,-4498.83998528,0.0003456,3]
[327534693,1716185443280,-1238.07166484,0.0003456,3]
[327534711,1716185450032,160.88358492,0.00020913,2]
[327534719,1716185470036,160.88358492,0.00020913,2]
[327534720,1716185483718,15296.65209017,0.00020913,2]
[327534721,1716185490093,160.88358492,0.00020913,2]
[327534722,1716185514053,160.88358492,0.00020913,2]
[327534724,1716185534084,160.88358492,0.00020913,2]
[327534841,1716186435282,-988.25500341,0.00019595,2]
[327534842,1716186435302,-160.88358492,0.0002,2]
[327534843,1716186435322,-227.21883131,0.00020704,2]
[327534844,1716186435342,-2163.29769622,0.00020912,2]
[327534845,1716186448508,-1636.74832833,0.00020912,2]
[327534846,1716186448530,-1149.7256992,0.00020912,2]
[327534847,1716186448552,-3956.59173985,0.00020912,2]
[327534848,1716186448574,-52.70287065,0.00020912,2]
[327534849,1716186487444,297.907528,0.00016,2]
[327534852,1716186558161,-432.52617801,0.000189,2]
[327534853,1716186558183,-986.45755068,0.00019595,2]
[327534854,1716186558205,-102.69934431,0.00020912,2]
[327534855,1716186558225,-864.21619924,0.00020912,2]
[327534856,1716186558246,-8038.06971759,0.00020912,2]
[327534857,1716186558271,-156.92939147,0.00020912,2]
[327534858,1716186558293,-177.85748747,0.00020912,2]
[327534859,1716186558315,-741.28984459,0.00020912,2]
[327534860,1716186558335,-897.86332672,0.00020912,2]
[327534861,1716186558356,-274.09997115,0.00020912,2]
[327534862,1716186558378,-3623.8873503,0.00020913,2]
[327534863,1716186558399,-280.0,0.00021,2]
[327534864,1716186558421,-432.52617801,0.000239,2]
[327534865,1716186558443,-170.164738,0.00024384,2]
[327534866,1716186558467,-500.0,0.00027,2]
[327534867,1716186558489,-808.99128999,0.000275,17]
[327534868,1716186558510,-251.27389609,0.00028,2]
[327534869,1716186558533,-12069.69118517,0.00029,30]
[327534870,1716186558553,-243.95015754,0.0003,4]
[327534874,1716186575600,338.78454019,0.00018,2]
[327534875,1716186578993,160.88358492,0.0003,4]
[327534883,1716186615109,725.86934173,0.00020913,2]
[327534884,1716186628362,150.0,0.00025971,5]
[327534885,1716186628557,150.0,0.00027844,5]
[327534886,1716186628762,150.0,0.00029717,7]
[327534937,1716186632375,-150.0,0.0003159,7]
[327534938,1716186632386,-467.90063964,0.00034,4]
[327534939,1716186632395,-416.90096189,0.00034226,2]
[327534940,1716186632405,-16945.34,0.0003455,3]
[327534942,1716186632415,-193.7483953,0.00034569,7]
[327534944,1716186632424,-500.0,0.00034569,7]
[327534946,1716186632434,-440.4123824,0.00034569,7]
[327534948,1716186632443,-341.12488271,0.00034569,7]
[327534950,1716186632454,-596.54326372,0.00034569,7]
[327534952,1716186632464,-500.0,0.00034569,7]
[327534954,1716186632473,-500.0,0.00034569,7]
[327534956,1716186632483,-500.0,0.00034569,7]
[327534958,1716186632492,-308.6728403,0.00034569,7]
[327534960,1716186632501,-500.0,0.00034569,7]
[327534961,1716186632510,-500.0,0.00034569,7]
[327534962,1716186632521,-500.0,0.00034569,7]
[327534963,1716186632530,-500.0,0.00034569,7]
[327534964,1716186632539,-500.0,0.00034569,7]
[327534965,1716186632549,-500.0,0.00034569,7]
[327534966,1716186632558,-500.0,0.00034569,7]
[327534967,1716186632568,-500.0,0.00034569,7]
[327534968,1716186632578,-500.0,0.00034569,7]
[327534969,1716186632587,-4430.20790889,0.0003457,3]
[327534970,1716186632597,-6135.23474609,0.0003457,3]
[327534971,1716186632606,-99150.74379893,0.0003457,2]
[327535015,1716186638808,-500.0,0.00034569,7]
[327535016,1716186638818,-500.0,0.00034569,7]
[327535017,1716186638827,-500.77174406,0.00034569,7]
[327535018,1716186638839,-17.56846336,0.00034569,7]
[327535020,1716186638851,-482.43153664,0.00034569,7]
[327535022,1716186638860,-500.0,0.00034569,7]
[327535024,1716186638869,-500.0,0.00034569,7]
[327535025,1716186638879,-500.0,0.00034569,7]
[327535026,1716186638888,-500.0,0.00034569,7]
[327535028,1716186638897,-500.0,0.00034569,7]
[327535030,1716186638907,-500.0,0.00034569,7]
[327535032,1716186638916,-500.0,0.00034569,7]
[327535034,1716186638925,-500.0,0.00034569,7]
[327535036,1716186638935,-500.0,0.00034569,7]
[327535038,1716186638944,-500.0,0.00034569,7]
[327535040,1716186638953,-547.84398908,0.00034569,7]
[327535042,1716186638962,-500.0,0.00034569,7]
[327535044,1716186638971,-60756.44717526,0.0003457,2]
[327535046,1716186638983,-35198.61777745,0.0003457,2]
[327535048,1716186638993,-157.2349656,0.000349,2]
[327535050,1716186639002,-210.75573198,0.00035,4]
[327535052,1716186639011,-1198.13822646,0.00037,2]
[327535054,1716186639021,-300.000001,0.000399,3]
[327535056,1716186639030,-653.4,0.00041096,30]
[327535058,1716186639039,-508.14265655,0.00042465,30]
[327535060,1716186639048,-5626.7482016,0.00043,30]
[327535062,1716186639057,-175.0,0.0004369,59]
[327535064,1716186639067,-653.4,0.00044618,30]
[327535066,1716186639076,-5491.19509573,0.00045,4]
[327535068,1716186639086,-500.79914571,0.00045,120]
[327535070,1716186639096,-220.24568549,0.00045,120]
[327535072,1716186639105,-150.0,0.0004557,51]
[327535074,1716186639115,-154.82968734,0.000459,4]
[327535076,1716186639125,-424.6018547,0.00045911,3]
[327535078,1716186639139,-1326.63976477,0.00045947,48]
[327535080,1716186639148,-7247.92064342,0.00046,20]
[327535082,1716186639160,-535.58090034,0.00046,20]
[327535084,1716186639170,-12574.89984953,0.00046123,120]
[327535086,1716186639179,-492.86802467,0.00046126,7]
[327535089,1716186639189,-1000.0,0.00046263,7]
[327535090,1716186639199,-300.61038107,0.00046271,7]
[327535092,1716186639208,-1000.0,0.00046319,7]
[327535094,1716186639217,-1000.0,0.00046344,7]
[327535096,1716186639228,-1091.98076439,0.00046375,5]
[327535099,1716186639239,-354.59878673,0.00046375,5]
[327535305,1716186641413,164.138579,0.00024384,2]
[327535510,1716186643496,-2355.26478755,0.00046375,5]
[327535512,1716186643508,-11220.2458691,0.00046375,5]
[327535514,1716186643519,-3743.22142762,0.00046375,5]
[327535822,1716186646202,-3040.39570742,0.00046375,5]
[327535847,1716186646433,-830.6395,0.00046375,5]
[327535849,1716186646444,-970.87276791,0.00046375,5]
[327535851,1716186646458,-422.22153081,0.00046375,5]
[327536099,1716186696213,155.81477501,0.00020913,2]
[327536100,1716186697494,264.34555412,0.00020913,2]
[327536101,1716186697888,155.22127947,0.00020913,2]
[327536102,1716186698512,155.44765639,0.00020913,2]
[327536103,1716186698745,157.3711822,0.00028986,2]
[327536104,1716186699190,155.02490863,0.00020913,2]
[327536105,1716186699267,2823.02130502,0.00020913,2]
[327536106,1716186700828,213.84088782,0.00020913,2]
[327536107,1716186701208,218.17340369,0.00020913,2]
[327536108,1716186702796,201.35678428,0.00020913,2]
[327536109,1716186703291,155.44078632,0.00020913,2]
[327536110,1716186703643,453.10630609,0.00020913,2]
[327536111,1716186703684,186.58997593,0.00020913,2]
[327536112,1716186703709,997.15183921,0.00020913,2]
[327536113,1716186703910,1399.17239624,0.00020913,2]
[327536114,1716186704029,262.778139,0.00020913,2]
[327536115,1716186705204,528.50433123,0.00020913,2]
[327536116,1716186705367,1824.12670797,0.00020913,2]
[327536117,1716186707473,160.33369916,0.00020913,2]
[327536118,1716186708790,241.88007353,0.00020913,2]
[327536119,1716186710560,160.61948739,0.00020913,2]
[327536120,1716186710841,943.58373633,0.00020913,2]
[327536121,1716186711181,1142.44395601,0.00020913,2]
[327536122,1716186712143,155.21473538,0.00020913,2]
[327536123,1716186714786,339.04179012,0.00020913,2]
[327536124,1716186721153,8247.58519671,0.00020913,2]
[327536125,1716186721652,156.01283754,0.00020913,2]
[327536132,1716186726639,505.97133195,0.00020913,2]
[327536133,1716186735884,286.65870738,0.00020913,2]
[327536134,1716186736513,12069.69118517,0.00029,30]
[327536135,1716186752447,12069.69118517,0.00029,30]
[327536213,1716187645163,-167.61413,0.00024384,2]
[327536214,1716187645183,-306.76565797,0.000269,2]
[327536215,1716187645204,-576.39564312,0.00027,15]
[327536216,1716187654101,-2142.06644356,0.00027,15]
[327536219,1716187747126,-164.138579,0.00024384,2]
[327536220,1716187747147,-10620.97741503,0.00027,15]
[327536221,1716187747167,-620.30536783,0.00027099,2]
[327536222,1716187747188,-620.01526839,0.00028454,2]
[327536223,1716187747208,-164.62741921,0.00029,2]
[327536224,1716187747228,-166.666666,0.00030576,2]
[327536225,1716187747251,-150.0,0.00031,6]
[327536226,1716187747273,-159.74926236,0.00031,2]
[327536233,1716187751165,150.0,0.00024999,2]
[327536234,1716187751368,150.0,0.00029999,2]
[327536338,1716187838653,-166.666666,0.0003141,2]
[327536339,1716187838663,-114.19600526,0.000318,2]
[327536340,1716187838675,-90.93898999,0.000318,2]
[327536341,1716187838686,-205.13499524,0.000318,2]
[327536342,1716187838696,-166.666666,0.00032243,2]
[327536343,1716187838706,-526.66959378,0.00033,2]
[327536375,1716187840908,-1398.2968949,0.00033,2]
[327536376,1716187840918,-166.666666,0.00033077,2]
[327536377,1716187840928,-166.666666,0.00033911,2]
[327536378,1716187840938,-166.666666,0.00034744,2]
[327536379,1716187840947,-886.41112912,0.00035,2]
[327536380,1716187840957,-1477.93975373,0.00035,120]
[327536381,1716187840968,-197.090936,0.00035656,2]
[327536382,1716187840978,-374.79266388,0.0003663,3]
[327536383,1716187840987,-4222.10020806,0.00036933,2]
[327536384,1716187840997,-417.06273246,0.00036948,2]
[327536385,1716187841007,-546.4,0.00044618,30]
[327536386,1716187841016,-5491.19509573,0.00045,4]
[327536387,1716187841026,-198.0,0.00045,90]
[327536388,1716187841035,-198.0,0.00045685,90]
[327536389,1716187841045,-154.82968734,0.000459,4]
[327536390,1716187841055,-549.87793183,0.000459,28]
[327536391,1716187841063,-7967.64444353,0.00046,20]
[327536392,1716187841073,-5497.19790402,0.00046,30]
[327536393,1716187841082,-603.8899387,0.000463,30]
[327536394,1716187841091,-1000.0,0.00046342,7]
[327536395,1716187841101,-200.50883297,0.00046365,2]
[327536396,1716187841110,-391.55377153,0.00046375,4]
[327536397,1716187841119,-92.86996559,0.00046375,2]
[327536398,1716187841314,-1907.13003441,0.00046375,2]
[327536399,1716187841324,-200.50883293,0.00046393,2]
[327536400,1716187841334,-200.50883293,0.0004642,2]
[327536401,1716187841343,-200.50883293,0.00046448,2]
[327536402,1716187841353,-449.76044323,0.00046454,120]
[327536403,1716187841363,-255.66139873,0.00046464,120]
[327536404,1716187841373,-500.0,0.00046464,120]
[327536405,1716187841383,-500.0,0.00046464,120]
[327536406,1716187841392,-500.0,0.00046464,120]
[327536407,1716187841401,-500.0,0.00046464,120]
[327536408,1716187841411,-500.0,0.00046464,120]
[327536409,1716187841420,-592.60185209,0.00046464,120]
[327536410,1716187841429,-17197.0,0.00046465,3]
[327536411,1716187841438,-200.50883293,0.00046475,2]
[327536412,1716187841447,-68918.85236564,0.00046475,5]
[327536413,1716187841457,-150.0,0.000465,53]
[327536414,1716187841466,-2215.10395444,0.00046575,3]
[327536415,1716187841475,-3067.61737304,0.00046575,3]
[327536416,1716187841485,-500.0,0.00046575,30]
[327536417,1716187841494,-502.33557891,0.00046575,30]
[327536418,1716187841504,-423.48114422,0.00046575,30]
[327536419,1716187841513,-500.0,0.00046575,30]
[327536420,1716187841522,-151.0,0.00046575,7]
[327536421,1716187841532,-151.0,0.00046575,7]
[327536422,1716187841545,-151.0,0.00046575,7]
[327536423,1716187841555,-151.0,0.00046575,7]
[327536424,1716187841564,-226.154825,0.00046575,7]
[327536425,1716187841575,-500.0,0.00046575,30]
[327536426,1716187841584,-500.0,0.00046575,30]
[327536427,1716187841594,-503.37121825,0.00046575,30]
[327536428,1716187841603,-500.0,0.00046575,30]
[327536429,1716187841614,-501.72219746,0.00046575,30]
[327536430,1716187841626,-500.0,0.00046575,30]
[327536431,1716187841637,-500.0,0.00046575,30]
[327536432,1716187841646,-500.0,0.00046575,30]
[327536433,1716187841656,-500.0,0.00046575,30]
[327536434,1716187841667,-500.0,0.00046575,30]
[327536435,1716187841678,-500.0,0.00046575,30]
[327536436,1716187841688,-500.0,0.00046575,30]
[327536437,1716187841698,-508.99650804,0.00046575,30]
[327536438,1716187841707,-500.0,0.00046575,30]
[327536439,1716187841717,-500.0,0.00046575,30]
[327536440,1716187841727,-500.0,0.00046575,30]
[327536441,1716187841736,-500.0,0.00046575,31]
[327536442,1716187841745,-500.0,0.00046575,32]
[327536443,1716187841754,-500.0,0.00046575,33]
[327536444,1716187841764,-500.0,0.00046575,34]
[327536445,1716187841773,-530.31317928,0.00046575,35]
[327536446,1716187841783,-507.85209907,0.00046575,30]
[327536447,1716187841792,-500.0,0.00046575,30]
[327536448,1716187841801,-500.0,0.00046575,30]
[327536449,1716187841810,-500.0,0.00046575,30]
[327536450,1716187841820,-497.35985586,0.00046575,30]
[327536451,1716187841922,-504.19850762,0.00046575,30]
[327536452,1716187841931,-328.342,0.00046575,30]
[327536453,1716187841940,-503.31528424,0.00046575,30]
[327536454,1716187841949,-510.30663308,0.00046575,30]
[327536455,1716187841958,-502.69994405,0.00046575,30]
[327536456,1716187841967,-503.9044195,0.00046575,30]
[327536457,1716187841976,-184.25396863,0.00046575,30]
[327536458,1716187841985,-503.15559934,0.00046575,30]
[327536459,1716187841995,-504.97773615,0.00046575,30]
[327536460,1716187842004,-503.73334902,0.00046575,30]
[327536461,1716187842014,-508.69013643,0.00046575,30]
[327536462,1716187842023,-507.21292144,0.00046575,30]
[327536463,1716187842033,-550.31365489,0.00046575,30]
[327536464,1716187842042,-500.0,0.00046575,30]
[327536465,1716187842052,-500.0,0.00046575,30]
[327536466,1716187842063,-502.29421865,0.00046575,30]
[327536467,1716187842072,-500.0,0.00046575,30]
[327536468,1716187842082,-500.520322,0.00046575,30]
[327536469,1716187842091,-151.0,0.00046575,7]
[327536470,1716187842100,-151.0,0.00046575,7]
[327536471,1716187842110,-151.0,0.00046575,7]
[327536472,1716187842122,-151.0,0.00046575,7]
[327536473,1716187842132,-151.0,0.00046575,7]
[327536474,1716187842142,-151.0,0.00046575,7]
[327536475,1716187842152,-501.79008016,0.00046575,30]
[327536476,1716187842163,-151.0,0.00046575,7]
[327536477,1716187842173,-151.0,0.00046575,7]
[327536478,1716187842183,-501.73351118,0.00046575,30]
[327536479,1716187842193,-151.0,0.00046575,7]
[327536480,1716187842203,-151.0,0.00046575,7]
[327536481,1716187842213,-500.0,0.00046575,30]
[327536482,1716187842222,-151.0,0.00046575,7]
[327536483,1716187842232,-151.0,0.00046575,7]
[327536484,1716187842241,-500.0,0.00046575,30]
[327536485,1716187842250,-500.0,0.00046575,30]
[327536486,1716187842263,-500.0,0.00046575,30]
[327536487,1716187842272,-503.10607449,0.00046575,30]
[327536488,1716187842282,-500.0,0.00046575,30]
[327536489,1716187842291,-500.0,0.00046575,30]
[327536490,1716187842300,-500.0,0.00046575,30]
[327536491,1716187842309,-501.09834516,0.00046575,30]
[327536492,1716187842318,-502.09888271,0.00046575,2]
[327536493,1716187842328,-500.0,0.00046575,30]
[327536494,1716187842337,-504.84702203,0.00046575,30]
[327536495,1716187842346,-500.0,0.00046575,30]
[327536496,1716187842356,-382.69625499,0.00046575,30]
[327536497,1716187842368,-501.90850723,0.00046575,30]
[327536498,1716187842376,-500.0,0.00046575,30]
[327536499,1716187842384,-509.83747537,0.00046575,30]
[327536500,1716187842392,-506.68480129,0.00046575,30]
[327536501,1716187842399,-500.0,0.00046575,30]
[327536502,1716187842407,-500.0,0.00046575,30]
[327536503,1716187842416,-500.0,0.00046575,30]
[327536504,1716187842425,-217.62320065,0.00046575,30]
[327536505,1716187842435,-500.0,0.00046575,30]
[327536506,1716187842444,-500.0,0.00046575,30]
[327536507,1716187842454,-500.0,0.00046575,30]
[327536508,1716187842463,-500.0,0.00046575,30]
[327536509,1716187842472,-500.0,0.00046575,30]
[327536510,1716187842481,-500.0,0.00046575,30]
[327536511,1716187842490,-151.0,0.00046575,7]
[327536512,1716187842500,-151.0,0.00046575,7]
[327536513,1716187842509,-151.0,0.00046575,7]
[327536514,1716187842519,-151.0,0.00046575,7]
[327536515,1716187842528,-151.0,0.00046575,7]
[327536516,1716187842541,-151.0,0.00046575,7]
[327536517,1716187842550,-151.0,0.00046575,7]
[327536518,1716187842560,-177.303886,0.00046575,7]
[327536519,1716187842569,-500.0,0.00046575,30]
[327536520,1716187842579,-500.0,0.00046575,30]
[327536521,1716187842588,-381.86761532,0.00046575,30]
[327536522,1716187842607,-118.13238468,0.00046575,30]
[327536523,1716187842618,-151.0,0.00046575,7]
[327536524,1716187842628,-258.002838,0.00046575,7]
[327536525,1716187842638,-169.23169,0.00046575,7]
[327536526,1716187842647,-501.64115449,0.00046575,30]
[327536527,1716187842657,-504.08474564,0.00046575,30]
[327536528,1716187842666,-507.37301594,0.00046575,30]
[327536529,1716187842675,-307.68522142,0.00046575,30]
[327536530,1716187842688,-192.31477858,0.00046575,30]
[327536531,1716187842697,-507.3555626,0.00046575,30]
[327536532,1716187842706,-502.26322152,0.00046575,30]